[Event "Titled Tuesday Blitz March 07 Late 2023"]
[White "Martinez Ramirez, Lennis"]
[Black "Kovacs, Klara"]
[WhiteFideId "3509079"]
[BlackFideId "733210"]
[WhiteElo "2439"]
[BlackElo "2179"]
[Result "1-0"]
[Round "07"]
[TimeControl "180+2"]
[Date "2023.03.07"]
[WhiteClock "0:01:29"]
[BlackClock "0:00:13"]

1. c4 {[%clk 0:03:00]}  e5 {[%clk 0:02:58]} 2. Nc3 {[%clk 0:03:00]}  Nc6 {[%clk 0:02:55]} 3. g3 {[%clk 0:03:00]}  Nf6 {[%clk 0:02:53]} 4. Bg2 {[%clk 0:03:01]}  Bb4 {[%clk 0:02:52]} 5. Nd5 {[%clk 0:03:00]}  Nxd5 {[%clk 0:02:48]} 6. cxd5 {[%clk 0:03:01]}  Ne7 {[%clk 0:02:47]} 7. Nf3 {[%clk 0:02:58]}  d6 {[%clk 0:02:44]} 8. O-O {[%clk 0:02:57]}  a5 {[%clk 0:02:43]} 9. e4 {[%clk 0:02:53]}  Bg4 {[%clk 0:02:41]} 10. d4 {[%clk 0:02:48]}  exd4 {[%clk 0:02:33]} 11. Qxd4 {[%clk 0:02:45]}  O-O {[%clk 0:02:31]} 12. Bg5 {[%clk 0:02:41]}  Bc5 {[%clk 0:02:17]} 13. Qc3 {[%clk 0:02:40]}  h6 {[%clk 0:02:11]} 14. Be3 {[%clk 0:02:39]}  Bxe3 {[%clk 0:02:09]} 15. Qxe3 {[%clk 0:02:40]}  Ng6 {[%clk 0:02:02]} 16. Nd4 {[%clk 0:02:38]}  Ne5 {[%clk 0:02:00]} 17. f4 {[%clk 0:02:37]}  Nc4 {[%clk 0:01:56]} 18. Qc3 {[%clk 0:02:37]}  Nb6 {[%clk 0:01:54]} 19. f5 {[%clk 0:02:33]}  Qf6 {[%clk 0:01:50]} 20. h3 {[%clk 0:02:29]}  Na4 {[%clk 0:01:47]} 21. Qd2 {[%clk 0:02:23]}  Bh5 {[%clk 0:01:03]} 22. g4 {[%clk 0:02:23]}  c5 {[%clk 0:01:02]} 23. dxc6 {[%clk 0:02:22]}  bxc6 {[%clk 0:01:02]} 24. gxh5 {[%clk 0:02:16]}  c5 {[%clk 0:01:00]} 25. e5 {[%clk 0:02:03]}  dxe5 {[%clk 0:00:57]} 26. Bxa8 {[%clk 0:02:03]}  Rxa8 {[%clk 0:00:54]} 27. Nf3 {[%clk 0:01:56]}  e4 {[%clk 0:00:53]} 28. Nh2 {[%clk 0:01:56]}  Rd8 {[%clk 0:00:51]} 29. Qg2 {[%clk 0:01:56]}  Nxb2 {[%clk 0:00:47]} 30. Qxe4 {[%clk 0:01:51]}  c4 {[%clk 0:00:39]} 31. Ng4 {[%clk 0:01:50]}  Qg5 {[%clk 0:00:36]} 32. f6 {[%clk 0:01:45]}  Rd3 {[%clk 0:00:34]} 33. fxg7 {[%clk 0:01:38]}  Qc5+ {[%clk 0:00:23]} 34. Rf2 {[%clk 0:01:33]}  Rg3+ {[%clk 0:00:14]} 35. Kh2 {[%clk 0:01:29]}  Rxg4 {[%clk 0:00:14]} 36. Qe8+ {[%clk 0:01:28]}  Kxg7 {[%clk 0:00:14]} 37. Qxf7+ {[%clk 0:01:28]}  Kh8 {[%clk 0:00:13]} 38. hxg4 {[%clk 0:01:29]} 1-0


[Site "https://www.chess.com"]

[Event "Titled Tuesday Blitz March 07 Late 2023"]
[White "Kleiman, Jake"]
[Black "Cardoso Cardoso, Jose Gabriel"]
[WhiteFideId "2020041"]
[BlackFideId "4430492"]
[WhiteElo "2494"]
[BlackElo "2496"]
[Result "0-1"]
[Round "07"]
[TimeControl "180+2"]
[Date "2023.03.07"]
[WhiteClock "0:00:10"]
[BlackClock "0:00:08"]

1. e4 {[%clk 0:02:57]}  c5 {[%clk 0:02:59]} 2. c3 {[%clk 0:02:58]}  d5 {[%clk 0:02:52]} 3. exd5 {[%clk 0:02:59]}  Qxd5 {[%clk 0:02:53]} 4. d4 {[%clk 0:02:57]}  g6 {[%clk 0:02:52]} 5. Nf3 {[%clk 0:02:56]}  Bg7 {[%clk 0:02:52]} 6. Na3 {[%clk 0:02:55]}  cxd4 {[%clk 0:02:44]} 7. Bc4 {[%clk 0:02:52]}  Qe4+ {[%clk 0:02:44]} 8. Be3 {[%clk 0:02:51]}  Nh6 {[%clk 0:02:45]} 9. Nb5 {[%clk 0:02:51]}  Na6 {[%clk 0:02:43]} 10. Nbxd4 {[%clk 0:02:48]}  O-O {[%clk 0:02:37]} 11. O-O {[%clk 0:02:47]}  Ng4 {[%clk 0:02:36]} 12. Bg5 {[%clk 0:02:38]}  Ne5 {[%clk 0:02:14]} 13. Re1 {[%clk 0:02:27]}  Nxf3+ {[%clk 0:02:12]} 14. Qxf3 {[%clk 0:02:28]}  Qxf3 {[%clk 0:02:10]} 15. Nxf3 {[%clk 0:02:28]}  e6 {[%clk 0:02:06]} 16. Rad1 {[%clk 0:02:25]}  Nc7 {[%clk 0:01:58]} 17. Bf4 {[%clk 0:02:13]}  Nd5 {[%clk 0:01:57]} 18. Bxd5 {[%clk 0:02:02]}  exd5 {[%clk 0:01:58]} 19. Rxd5 {[%clk 0:02:02]}  Be6 {[%clk 0:01:58]} 20. Rb5 {[%clk 0:02:02]}  b6 {[%clk 0:01:56]} 21. a3 {[%clk 0:01:52]}  Rfd8 {[%clk 0:01:52]} 22. Be5 {[%clk 0:01:41]}  Bh6 {[%clk 0:01:48]} 23. Bd4 {[%clk 0:01:37]}  Bd5 {[%clk 0:01:37]} 24. h3 {[%clk 0:01:26]}  Rac8 {[%clk 0:01:31]} 25. Bf6 {[%clk 0:01:20]}  Rd6 {[%clk 0:01:27]} 26. Rd1 {[%clk 0:01:01]}  Rxf6 {[%clk 0:01:14]} 27. Rbxd5 {[%clk 0:01:01]}  Re6 {[%clk 0:01:12]} 28. Kf1 {[%clk 0:00:49]}  Kg7 {[%clk 0:01:01]} 29. Rd7 {[%clk 0:00:40]}  a5 {[%clk 0:00:59]} 30. Nd4 {[%clk 0:00:33]}  Rf6 {[%clk 0:00:55]} 31. g3 {[%clk 0:00:28]}  Be3 {[%clk 0:00:49]} 32. f4 {[%clk 0:00:23]}  g5 {[%clk 0:00:49]} 33. f5 {[%clk 0:00:12]}  Bxd4 {[%clk 0:00:48]} 34. R1xd4 {[%clk 0:00:13]}  Rxf5+ {[%clk 0:00:49]} 35. Kg2 {[%clk 0:00:13]}  Re8 {[%clk 0:00:48]} 36. Rd2 {[%clk 0:00:14]}  h5 {[%clk 0:00:46]} 37. Rf2 {[%clk 0:00:10]}  Ree5 {[%clk 0:00:44]} 38. Rxf5 {[%clk 0:00:09]}  Rxf5 {[%clk 0:00:45]} 39. Rd4 {[%clk 0:00:09]}  Re5 {[%clk 0:00:42]} 40. Kf2 {[%clk 0:00:09]}  Re6 {[%clk 0:00:38]} 41. a4 {[%clk 0:00:09]}  Kg6 {[%clk 0:00:36]} 42. Rd5 {[%clk 0:00:09]}  f6 {[%clk 0:00:36]} 43. b4 {[%clk 0:00:07]}  Rc6 {[%clk 0:00:32]} 44. bxa5 {[%clk 0:00:07]}  bxa5 {[%clk 0:00:31]} 45. Rxa5 {[%clk 0:00:07]}  Rxc3 {[%clk 0:00:32]} 46. Ra8 {[%clk 0:00:05]}  Rc2+ {[%clk 0:00:32]} 47. Kf3 {[%clk 0:00:04]}  Rh2 {[%clk 0:00:32]} 48. h4 {[%clk 0:00:04]}  g4+ {[%clk 0:00:30]} 49. Ke3 {[%clk 0:00:04]}  Rg2 {[%clk 0:00:30]} 50. Kf4 {[%clk 0:00:04]}  Rf2+ {[%clk 0:00:30]} 51. Ke4 {[%clk 0:00:05]}  Rf3 {[%clk 0:00:31]} 52. Rg8+ {[%clk 0:00:05]}  Kh7 {[%clk 0:00:30]} 53. Rf8 {[%clk 0:00:05]}  Kg7 {[%clk 0:00:30]} 54. Rb8 {[%clk 0:00:06]}  Rxg3 {[%clk 0:00:30]} 55. Rb5 {[%clk 0:00:06]}  Kg6 {[%clk 0:00:28]} 56. Rb8 {[%clk 0:00:05]}  Ra3 {[%clk 0:00:27]} 57. Ra8 {[%clk 0:00:05]}  g3 {[%clk 0:00:27]} 58. a5 {[%clk 0:00:06]}  Kg7 {[%clk 0:00:22]} 59. Ra7+ {[%clk 0:00:06]}  Kh6 {[%clk 0:00:22]} 60. Ra8 {[%clk 0:00:06]}  Ra4+ {[%clk 0:00:19]} 61. Kf3 {[%clk 0:00:06]}  Rg4 {[%clk 0:00:19]} 62. Kg2 {[%clk 0:00:07]}  Rxh4 {[%clk 0:00:14]} 63. Kxg3 {[%clk 0:00:06]}  Ra4 {[%clk 0:00:15]} 64. Ra6 {[%clk 0:00:06]}  Kg5 {[%clk 0:00:15]} 65. Ra8 {[%clk 0:00:07]}  Ra3+ {[%clk 0:00:14]} 66. Kg2 {[%clk 0:00:07]}  Kg4 {[%clk 0:00:13]} 67. Rg8+ {[%clk 0:00:07]}  Kf4 {[%clk 0:00:14]} 68. Rh8 {[%clk 0:00:07]}  Rxa5 {[%clk 0:00:13]} 69. Kh3 {[%clk 0:00:07]}  Ra3+ {[%clk 0:00:11]} 70. Kg2 {[%clk 0:00:07]}  Rg3+ {[%clk 0:00:11]} 71. Kh2 {[%clk 0:00:07]}  Rg5 {[%clk 0:00:11]} 72. Kh3 {[%clk 0:00:07]}  Rc5 {[%clk 0:00:09]} 73. Ra8 {[%clk 0:00:07]}  f5 {[%clk 0:00:08]} 74. Ra4+ {[%clk 0:00:07]}  Kg5 {[%clk 0:00:08]} 75. Ra3 {[%clk 0:00:08]}  h4 {[%clk 0:00:08]} 76. Rf3 {[%clk 0:00:08]}  Re5 {[%clk 0:00:07]} 77. Ra3 {[%clk 0:00:09]}  f4 {[%clk 0:00:08]} 78. Kg2 {[%clk 0:00:09]}  Kg4 {[%clk 0:00:08]} 79. Rf3 {[%clk 0:00:09]}  Re2+ {[%clk 0:00:08]} 80. Rf2 {[%clk 0:00:10]}  h3+ {[%clk 0:00:07]} 81. Kf1 {[%clk 0:00:10]}  Rxf2+ {[%clk 0:00:07]} 82. Kxf2 {[%clk 0:00:10]}  Kh4 {[%clk 0:00:08]} 0-1


[Site "https://www.chess.com"]

[Event "Titled Tuesday Blitz March 07 Late 2023"]
[White "Dodaro, Mattia"]
[Black "Saveliev, Alexei"]
[WhiteFideId "28583400"]
[BlackFideId "24128546"]
[WhiteElo "2415"]
[BlackElo "2271"]
[Result "0-1"]
[Round "07"]
[TimeControl "180+2"]
[Date "2023.03.07"]
[WhiteClock "0:01:25"]
[BlackClock "0:02:16"]

1. a3 {[%clk 0:03:00]}  g6 {[%clk 0:02:59]} 2. Nf3 {[%clk 0:02:57]}  Bg7 {[%clk 0:02:59]} 3. g3 {[%clk 0:02:57]}  e5 {[%clk 0:02:59]} 4. d3 {[%clk 0:02:56]}  d5 {[%clk 0:02:59]} 5. Bg2 {[%clk 0:02:57]}  c5 {[%clk 0:02:56]} 6. O-O {[%clk 0:02:57]}  Nc6 {[%clk 0:02:56]} 7. e4 {[%clk 0:02:54]}  d4 {[%clk 0:02:54]} 8. c3 {[%clk 0:02:52]}  Nge7 {[%clk 0:02:51]} 9. cxd4 {[%clk 0:02:45]}  cxd4 {[%clk 0:02:52]} 10. b4 {[%clk 0:02:45]}  a6 {[%clk 0:02:52]} 11. Nbd2 {[%clk 0:02:45]}  O-O {[%clk 0:02:52]} 12. Bb2 {[%clk 0:02:45]}  f5 {[%clk 0:02:49]} 13. exf5 {[%clk 0:02:45]}  gxf5 {[%clk 0:02:50]} 14. Nc4 {[%clk 0:02:43]}  Ng6 {[%clk 0:02:49]} 15. Bc1 {[%clk 0:02:40]}  Be6 {[%clk 0:02:43]} 16. Bg5 {[%clk 0:02:36]}  Qe8 {[%clk 0:02:40]} 17. Rc1 {[%clk 0:02:35]}  h6 {[%clk 0:02:37]} 18. Bd2 {[%clk 0:02:34]}  Rd8 {[%clk 0:02:34]} 19. Re1 {[%clk 0:02:33]}  Qf7 {[%clk 0:02:32]} 20. Qe2 {[%clk 0:02:14]}  e4 {[%clk 0:02:25]} 21. Nh4 {[%clk 0:01:26]}  Nxh4 {[%clk 0:02:25]} 22. gxh4 {[%clk 0:01:27]}  Bxc4 {[%clk 0:02:16]} 23. Rxc4 {[%clk 0:01:25]}  Ne5 {[%clk 0:02:16]} 0-1


[Site "https://www.chess.com"]

[Event "Titled Tuesday Blitz March 07 Late 2023"]
[White "Harriott, Tyrell"]
[Black "Gascon Del Nogal, Jose Rafael"]
[WhiteFideId "2086484"]
[BlackFideId "3902463"]
[WhiteElo "2107"]
[BlackElo "2473"]
[Result "0-1"]
[Round "07"]
[TimeControl "180+2"]
[Date "2023.03.07"]
[WhiteClock "0:00:02"]
[BlackClock "0:00:05"]

1. d4 {[%clk 0:03:00]}  d5 {[%clk 0:02:59]} 2. e3 {[%clk 0:03:01]}  Nf6 {[%clk 0:02:59]} 3. Bd3 {[%clk 0:03:01]}  c5 {[%clk 0:02:57]} 4. c3 {[%clk 0:03:01]}  Nc6 {[%clk 0:02:57]} 5. f4 {[%clk 0:03:01]}  g6 {[%clk 0:02:37]} 6. Nf3 {[%clk 0:03:01]}  Bg7 {[%clk 0:02:38]} 7. O-O {[%clk 0:03:01]}  O-O {[%clk 0:02:39]} 8. Nbd2 {[%clk 0:03:00]}  Qc7 {[%clk 0:02:39]} 9. Ne5 {[%clk 0:02:57]}  Rb8 {[%clk 0:02:39]} 10. b3 {[%clk 0:02:56]}  b5 {[%clk 0:02:38]} 11. Bb2 {[%clk 0:02:52]}  c4 {[%clk 0:02:35]} 12. Bc2 {[%clk 0:02:47]}  Bf5 {[%clk 0:02:32]} 13. Bxf5 {[%clk 0:02:39]}  gxf5 {[%clk 0:02:33]} 14. bxc4 {[%clk 0:02:26]}  bxc4 {[%clk 0:02:31]} 15. Ba3 {[%clk 0:02:26]}  Rfe8 {[%clk 0:02:26]} 16. Qa4 {[%clk 0:02:14]}  Rbc8 {[%clk 0:02:07]} 17. Bc5 {[%clk 0:02:01]}  e6 {[%clk 0:02:04]} 18. Rab1 {[%clk 0:01:57]}  Nxe5 {[%clk 0:02:04]} 19. fxe5 {[%clk 0:01:56]}  Ng4 {[%clk 0:02:04]} 20. Rf3 {[%clk 0:01:44]}  Nxe5 {[%clk 0:02:02]} 21. Rg3 {[%clk 0:01:29]}  Ng4 {[%clk 0:01:56]} 22. Nf1 {[%clk 0:01:25]}  Nf6 {[%clk 0:01:47]} 23. Qa6 {[%clk 0:01:17]}  Ne4 {[%clk 0:01:40]} 24. Rb7 {[%clk 0:01:12]}  Qc6 {[%clk 0:01:39]} 25. Rxg7+ {[%clk 0:00:59]}  Kxg7 {[%clk 0:01:38]} 26. Qxa7 {[%clk 0:00:56]}  Ng5 {[%clk 0:01:19]} 27. Rb6 {[%clk 0:00:49]}  Qa8 {[%clk 0:00:59]} 28. Qd7 {[%clk 0:00:45]}  Rb8 {[%clk 0:00:43]} 29. Rxb8 {[%clk 0:00:30]}  Rxb8 {[%clk 0:00:35]} 30. Bd6 {[%clk 0:00:26]}  Rb1 {[%clk 0:00:33]} 31. Be5+ {[%clk 0:00:25]}  Kg6 {[%clk 0:00:31]} 32. Qe7 {[%clk 0:00:22]}  Ne4 {[%clk 0:00:25]} 33. h4 {[%clk 0:00:14]}  Rb7 {[%clk 0:00:17]} 34. h5+ {[%clk 0:00:13]}  Kxh5 {[%clk 0:00:18]} 35. Ng3+ {[%clk 0:00:07]}  Nxg3 {[%clk 0:00:17]} 36. Qf6 {[%clk 0:00:07]}  Rb1+ {[%clk 0:00:17]} 37. Kh2 {[%clk 0:00:06]}  Rh1+ {[%clk 0:00:12]} 38. Kxg3 {[%clk 0:00:07]}  Qg8+ {[%clk 0:00:12]} 39. Kf2 {[%clk 0:00:07]}  Qg6 {[%clk 0:00:09]} 40. Qe7 {[%clk 0:00:04]}  Ra1 {[%clk 0:00:06]} 41. Bg3 {[%clk 0:00:03]}  Rxa2+ {[%clk 0:00:06]} 42. Kf1 {[%clk 0:00:02]}  Qxg3 {[%clk 0:00:05]} 43. Qxf7+ {[%clk 0:00:02]}  Qg6 {[%clk 0:00:05]} 44. Qe7 {[%clk 0:00:02]}  Qxg2+ {[%clk 0:00:05]} 0-1


[Site "https://www.chess.com"]

[Event "Titled Tuesday Blitz March 07 Late 2023"]
[White "Krallis, Christos"]
[Black "Rostomyan, Mikayel"]
[WhiteFideId "4298896"]
[BlackFideId "13313754"]
[WhiteElo "2243"]
[BlackElo "2009"]
[Result "1-0"]
[Round "07"]
[TimeControl "180+2"]
[Date "2023.03.07"]
[WhiteClock "0:00:14"]
[BlackClock "0:00:09"]

1. e4 {[%clk 0:03:00]}  c5 {[%clk 0:02:59]} 2. Nf3 {[%clk 0:03:00]}  d6 {[%clk 0:02:58]} 3. Nc3 {[%clk 0:02:57]}  Nf6 {[%clk 0:02:58]} 4. Bb5+ {[%clk 0:02:56]}  Nbd7 {[%clk 0:02:58]} 5. d4 {[%clk 0:02:55]}  cxd4 {[%clk 0:02:49]} 6. Qxd4 {[%clk 0:02:53]}  a6 {[%clk 0:02:48]} 7. Bxd7+ {[%clk 0:02:53]}  Bxd7 {[%clk 0:02:48]} 8. O-O {[%clk 0:02:52]}  g6 {[%clk 0:02:44]} 9. Bg5 {[%clk 0:02:49]}  Bg7 {[%clk 0:02:44]} 10. Nd5 {[%clk 0:02:41]}  O-O {[%clk 0:02:32]} 11. Nxf6+ {[%clk 0:02:40]}  exf6 {[%clk 0:02:32]} 12. Bh4 {[%clk 0:02:41]}  Bc6 {[%clk 0:02:21]} 13. Qd3 {[%clk 0:02:13]}  Re8 {[%clk 0:02:16]} 14. Rfe1 {[%clk 0:02:11]}  Qb6 {[%clk 0:01:46]} 15. Rab1 {[%clk 0:01:56]}  f5 {[%clk 0:00:57]} 16. exf5 {[%clk 0:01:52]}  Rxe1+ {[%clk 0:00:58]} 17. Rxe1 {[%clk 0:01:50]}  Bxf3 {[%clk 0:00:51]} 18. Qxf3 {[%clk 0:01:47]}  Qb4 {[%clk 0:00:40]} 19. Qe4 {[%clk 0:01:30]}  Qxe4 {[%clk 0:00:39]} 20. Rxe4 {[%clk 0:01:30]}  gxf5 {[%clk 0:00:39]} 21. Re7 {[%clk 0:01:29]}  b5 {[%clk 0:00:35]} 22. c3 {[%clk 0:01:26]}  b4 {[%clk 0:00:26]} 23. cxb4 {[%clk 0:01:24]}  Bxb2 {[%clk 0:00:27]} 24. Bg3 {[%clk 0:01:24]}  Rb8 {[%clk 0:00:24]} 25. h4 {[%clk 0:01:18]}  Rxb4 {[%clk 0:00:22]} 26. Bxd6 {[%clk 0:01:18]}  Rxh4 {[%clk 0:00:18]} 27. Rb7 {[%clk 0:01:17]}  Bf6 {[%clk 0:00:10]} 28. g3 {[%clk 0:01:15]}  Rd4 {[%clk 0:00:08]} 29. Bf4 {[%clk 0:01:14]}  Kg7 {[%clk 0:00:07]} 30. Rb3 {[%clk 0:00:54]}  Ra4 {[%clk 0:00:07]} 31. a3 {[%clk 0:00:55]}  h5 {[%clk 0:00:06]} 32. Be3 {[%clk 0:00:51]}  h4 {[%clk 0:00:05]} 33. gxh4 {[%clk 0:00:51]}  Rxh4 {[%clk 0:00:05]} 34. Kg2 {[%clk 0:00:51]}  Rg4+ {[%clk 0:00:05]} 35. Kf3 {[%clk 0:00:51]}  Rc4 {[%clk 0:00:06]} 36. Rb6 {[%clk 0:00:49]}  Ra4 {[%clk 0:00:05]} 37. Bc1 {[%clk 0:00:48]}  Be7 {[%clk 0:00:04]} 38. Bb2+ {[%clk 0:00:48]}  f6 {[%clk 0:00:04]} 39. Re6 {[%clk 0:00:44]}  Kf7 {[%clk 0:00:04]} 40. Re3 {[%clk 0:00:44]}  Bc5 {[%clk 0:00:04]} 41. Rc3 {[%clk 0:00:44]}  Be7 {[%clk 0:00:04]} 42. Rb3 {[%clk 0:00:44]}  Kg6 {[%clk 0:00:04]} 43. Kg2 {[%clk 0:00:43]}  Bd6 {[%clk 0:00:04]} 44. Kf3 {[%clk 0:00:43]}  Be5 {[%clk 0:00:04]} 45. Bc1 {[%clk 0:00:43]}  f4 {[%clk 0:00:04]} 46. Kg4 {[%clk 0:00:38]}  Rc4 {[%clk 0:00:03]} 47. Bd2 {[%clk 0:00:36]}  Rc2 {[%clk 0:00:04]} 48. Rd3 {[%clk 0:00:23]}  Ra2 {[%clk 0:00:03]} 49. Kf3 {[%clk 0:00:23]}  Kf5 {[%clk 0:00:03]} 50. Rd5 {[%clk 0:00:21]}  Rb2 {[%clk 0:00:03]} 51. Rd3 {[%clk 0:00:19]}  a5 {[%clk 0:00:03]} 52. Bxa5 {[%clk 0:00:17]}  Ra2 {[%clk 0:00:03]} 53. Bd2 {[%clk 0:00:17]}  Bb2 {[%clk 0:00:03]} 54. Bb4 {[%clk 0:00:17]}  Be5 {[%clk 0:00:03]} 55. Kg2 {[%clk 0:00:16]}  Ra1 {[%clk 0:00:03]} 56. Kf3 {[%clk 0:00:16]}  Ra2 {[%clk 0:00:04]} 57. Rb3 {[%clk 0:00:16]}  Ra1 {[%clk 0:00:04]} 58. Bc3 {[%clk 0:00:16]}  Bxc3 {[%clk 0:00:03]} 59. Rxc3 {[%clk 0:00:16]}  Ke5 {[%clk 0:00:04]} 60. Rc5+ {[%clk 0:00:16]}  Kd6 {[%clk 0:00:04]} 61. Ra5 {[%clk 0:00:17]}  Ke6 {[%clk 0:00:04]} 62. Kxf4 {[%clk 0:00:17]}  Ra2 {[%clk 0:00:05]} 63. f3 {[%clk 0:00:17]}  Rb2 {[%clk 0:00:06]} 64. Ra6+ {[%clk 0:00:18]}  Ke7 {[%clk 0:00:06]} 65. Kf5 {[%clk 0:00:18]}  Rb3 {[%clk 0:00:06]} 66. f4 {[%clk 0:00:18]}  Rb5+ {[%clk 0:00:07]} 67. Kg6 {[%clk 0:00:18]}  f5 {[%clk 0:00:07]} 68. a4 {[%clk 0:00:17]}  Rb4 {[%clk 0:00:07]} 69. Kxf5 {[%clk 0:00:17]}  Kf7 {[%clk 0:00:08]} 70. Ra7+ {[%clk 0:00:17]}  Kf8 {[%clk 0:00:08]} 71. Kg5 {[%clk 0:00:17]}  Rb6 {[%clk 0:00:08]} 72. f5 {[%clk 0:00:17]}  Rb1 {[%clk 0:00:09]} 73. Kg6 {[%clk 0:00:17]}  Rg1+ {[%clk 0:00:09]} 74. Kf6 {[%clk 0:00:18]}  Ke8 {[%clk 0:00:10]} 75. Ra8+ {[%clk 0:00:18]}  Kd7 {[%clk 0:00:11]} 76. Kf7 {[%clk 0:00:17]}  Rf1 {[%clk 0:00:11]} 77. f6 {[%clk 0:00:18]}  Kd6 {[%clk 0:00:12]} 78. a5 {[%clk 0:00:15]}  Ke5 {[%clk 0:00:12]} 79. Re8+ {[%clk 0:00:15]}  Kd6 {[%clk 0:00:12]} 80. Re2 {[%clk 0:00:14]}  Rf5 {[%clk 0:00:08]} 81. a6 {[%clk 0:00:13]}  Ra5 {[%clk 0:00:08]} 82. Kg7 {[%clk 0:00:14]}  Rxa6 {[%clk 0:00:08]} 83. f7 {[%clk 0:00:14]}  Ra7 {[%clk 0:00:09]} 84. Kg8 {[%clk 0:00:14]} 1-0


[Site "https://www.chess.com"]

[Event "Titled Tuesday Blitz March 07 Late 2023"]
[White "Ozates, Tuna"]
[Black "Matinian, Nikita"]
[WhiteFideId "6354521"]
[BlackFideId "24129100"]
[WhiteElo "2151"]
[BlackElo "2422"]
[Result "1-0"]
[Round "07"]
[TimeControl "180+2"]
[Date "2023.03.07"]
[WhiteClock "0:00:10"]
[BlackClock "0:00:02"]

1. e4 {[%clk 0:02:55]}  c5 {[%clk 0:03:00]} 2. Nf3 {[%clk 0:02:55]}  e6 {[%clk 0:03:00]} 3. d4 {[%clk 0:02:54]}  cxd4 {[%clk 0:03:01]} 4. Nxd4 {[%clk 0:02:55]}  Nc6 {[%clk 0:03:02]} 5. Nc3 {[%clk 0:02:55]}  Qc7 {[%clk 0:03:02]} 6. Qd3 {[%clk 0:02:55]}  a6 {[%clk 0:02:53]} 7. Nxc6 {[%clk 0:02:54]}  Qxc6 {[%clk 0:02:51]} 8. Be2 {[%clk 0:02:45]}  b5 {[%clk 0:02:49]} 9. a3 {[%clk 0:02:43]}  Bb7 {[%clk 0:02:49]} 10. Qg3 {[%clk 0:02:43]}  Nf6 {[%clk 0:02:47]} 11. O-O {[%clk 0:02:41]}  h5 {[%clk 0:02:46]} 12. h4 {[%clk 0:02:37]}  Be7 {[%clk 0:02:25]} 13. Bf3 {[%clk 0:02:21]}  Qc4 {[%clk 0:02:01]} 14. Bg5 {[%clk 0:01:48]}  Nxe4 {[%clk 0:01:48]} 15. Bxe4 {[%clk 0:01:45]}  Bxe4 {[%clk 0:01:49]} 16. Nxe4 {[%clk 0:01:24]}  Qxe4 {[%clk 0:01:47]} 17. Bxe7 {[%clk 0:01:24]}  Kxe7 {[%clk 0:01:47]} 18. Rad1 {[%clk 0:01:25]}  d5 {[%clk 0:01:38]} 19. Qc7+ {[%clk 0:01:23]}  Kf6 {[%clk 0:01:25]} 20. Rfe1 {[%clk 0:01:12]}  Qxh4 {[%clk 0:01:12]} 21. Rd3 {[%clk 0:01:02]}  Kg6 {[%clk 0:00:51]} 22. Rg3+ {[%clk 0:01:00]}  Kh7 {[%clk 0:00:48]} 23. Qxf7 {[%clk 0:00:59]}  Qf6 {[%clk 0:00:44]} 24. Qxh5+ {[%clk 0:00:56]}  Kg8 {[%clk 0:00:43]} 25. Qg4 {[%clk 0:00:56]}  Re8 {[%clk 0:00:40]} 26. Ree3 {[%clk 0:00:48]}  Qxb2 {[%clk 0:00:37]} 27. Re1 {[%clk 0:00:36]}  Qf6 {[%clk 0:00:37]} 28. Rge3 {[%clk 0:00:32]}  Rh4 {[%clk 0:00:27]} 29. Qg3 {[%clk 0:00:27]}  Qh6 {[%clk 0:00:25]} 30. f3 {[%clk 0:00:25]}  d4 {[%clk 0:00:18]} 31. Re4 {[%clk 0:00:19]}  Rh1+ {[%clk 0:00:17]} 32. Kf2 {[%clk 0:00:19]}  Rxe1 {[%clk 0:00:15]} 33. Rxe1 {[%clk 0:00:20]}  Rc8 {[%clk 0:00:14]} 34. Re2 {[%clk 0:00:19]}  Rc3 {[%clk 0:00:09]} 35. Qd6 {[%clk 0:00:17]}  Qh4+ {[%clk 0:00:09]} 36. Kg1 {[%clk 0:00:15]}  Kh7 {[%clk 0:00:03]} 37. Qxe6 {[%clk 0:00:14]}  d3 {[%clk 0:00:04]} 38. Qf5+ {[%clk 0:00:12]}  g6 {[%clk 0:00:02]} 39. Qf7+ {[%clk 0:00:12]}  Kh6 {[%clk 0:00:03]} 40. Qf8+ {[%clk 0:00:13]}  Kh5 {[%clk 0:00:02]} 41. g4+ {[%clk 0:00:10]} 1-0


[Site "https://www.chess.com"]